bitfinex-derivatives/quotes_BNBF0:USTF0_20250331
["timestamp","ask_amount","ask_price","bid_price","bid_amount"]
[1743451817284,0.30268529,607.96,606.36,0.32983706]
[1743451817482,0.30268529,607.95,606.36,0.32983706]
[1743451817686,0.30268529,607.94,606.36,0.32983706]
[1743451817987,0.30268529,607.93,606.36,0.32983706]
[1743451818186,0.30268529,607.92,606.36,0.32983706]
[1743451818384,0.30268529,607.91,606.36,0.32983706]
[1743451818586,0.30268529,607.9,606.36,0.32983706]
[1743451818787,0.28664506,608.01,606.36,0.32983706]
[1743451818788,0.30268529,607.89,606.36,0.32983706]
[1743451818989,0.30268529,607.88,606.36,0.32983706]
[1743451819289,0.30268529,607.87,606.36,0.32983706]
[1743451819491,0.30268529,607.86,606.36,0.32983706]
[1743451819789,0.30268529,607.85,606.36,0.32983706]
[1743451821084,0.30268529,607.84,606.36,0.32983706]
[1743451821289,0.30268529,607.83,606.36,0.32983706]
[1743451821588,0.30268529,607.82,606.36,0.32983706]
[1743451821783,0.30268529,607.81,606.36,0.32983706]
[1743451821988,0.30268529,607.8,606.36,0.32983706]
[1743451822185,0.30268529,607.79,606.36,0.32983706]
[1743451822385,0.30268529,607.78,606.36,0.32983706]
[1743451822589,0.28666041,607.86,606.36,0.32983706]
[1743451822590,0.30268529,607.85,606.36,0.32983706]
[1743451822785,0.30268529,607.84,606.36,0.32983706]
[1743451822985,0.2867041,607.77,606.36,0.32983706]
[1743451823182,0.30268529,607.76,606.36,0.32983706]
[1743451823384,2.81225793,608.01,606.36,0.32983706]
[1743451823585,0.28669111,607.76,606.36,0.32983706]
[1743451823790,0.30268529,607.75,606.36,0.32983706]
[1743451823990,0.30268529,607.99,606.36,0.32983706]
[1743451824187,0.28671355,607.75,606.36,0.32983706]
[1743451824387,0.30268529,607.74,606.36,0.32983706]
[1743451824885,0.30268529,607.73,606.36,0.32983706]
[1743451825488,0.32894736,608.0,606.36,0.32983706]
[1743451825790,0.28676907,607.72,606.36,0.32983706]
[1743451826091,0.3027818,607.71,606.36,0.32983706]
[1743451826290,0.3027818,607.99,606.36,0.32983706]
[1743451826592,0.28673953,607.71,606.36,0.32983706]
[1743451826791,0.3027818,607.7,606.36,0.32983706]
[1743451826992,0.3027818,607.69,606.36,0.32983706]
[1743451828689,0.3027818,607.68,606.36,0.32983706]
[1743451828885,0.3027818,607.67,606.36,0.32983706]
[1743451834790,0.3027818,607.66,606.36,0.32983706]
[1743451834988,0.28682343,607.66,606.36,0.32983706]
[1743451835189,0.3027818,607.65,606.36,0.32983706]
[1743451836796,1.3387818,607.65,606.36,0.32983706]
[1743451837095,0.3027818,607.64,606.36,0.32983706]
[1743451837794,0.28682107,607.63,606.36,0.32983706]
[1743451838095,0.3027818,607.62,606.36,0.32983706]
[1743451839800,0.28682107,607.63,606.36,0.32983706]
[1743451840103,0.30279676,607.62,606.36,0.32983706]
[1743451840697,0.30279676,607.61,606.36,0.32983706]
[1743451840898,0.30279676,607.6,606.36,0.32983706]
[1743451841099,0.30279676,607.59,606.36,0.32983706]
[1743451841293,0.30279676,607.6,606.36,0.32983706]
[1743451841500,0.30280262,607.59,606.36,0.32983706]
[1743451841693,0.30280262,607.58,606.36,0.32983706]
[1743451841895,0.28680097,607.61,606.36,0.32983706]
[1743451841896,0.30280262,607.57,606.36,0.32983706]
[1743451842099,0.30280262,607.56,606.36,0.32983706]
[1743451842395,0.28680097,607.61,606.36,0.32983706]
[1743451842396,0.30280262,607.55,606.36,0.32983706]
[1743451842594,0.30280262,607.54,606.36,0.32983706]
[1743451842798,0.30280262,607.6,606.36,0.32983706]
[1743451842993,0.30280262,607.59,606.36,0.32983706]
[1743451843201,0.30280262,607.6,606.36,0.32983706]
[1743451843401,0.30280262,607.59,606.36,0.32983706]
[1743451843594,0.30280262,607.6,606.36,0.32983706]
[1743451843794,0.30280262,607.59,606.36,0.32983706]
[1743451844100,0.58959769,607.58,606.36,0.32983706]
[1743451844301,0.30280262,607.57,606.36,0.32983706]
[1743451846799,0.28682698,607.56,606.36,0.32983706]
[1743451846999,0.30280262,607.55,606.36,0.32983706]
[1743451847902,0.30280357,607.54,606.36,0.32983706]
[1743451848104,0.30280357,607.55,606.36,0.32983706]
[1743451848304,0.30280357,607.54,606.36,0.32983706]
[1743451848503,0.30280357,607.55,606.36,0.32983706]
[1743451848704,0.30280357,607.54,606.36,0.32983706]
[1743451848904,0.30280357,607.55,606.36,0.32983706]
[1743451849099,0.30280357,607.54,606.36,0.32983706]
[1743451849298,0.30280357,607.53,606.36,0.32983706]
[1743451849498,0.30280357,607.55,606.36,0.32983706]
[1743451849702,0.30280357,607.54,606.36,0.32983706]
[1743451849907,0.28682698,607.52,606.36,0.32983706]
[1743451850097,0.30280357,607.51,606.36,0.32983706]
[1743451852703,0.30280357,607.64,606.36,0.32983706]
[1743451852903,0.30280357,607.63,606.36,0.32983706]
[1743451853205,0.28681634,607.5,606.36,0.32983706]
[1743451853399,0.30280357,607.49,606.36,0.32983706]
[1743451853604,0.28681397,607.62,606.36,0.32983706]
[1743451853800,0.30280357,607.61,606.36,0.32983706]
[1743451854203,0.28681397,607.62,606.36,0.32983706]
[1743451854403,0.30282336,607.61,606.36,0.32983706]
[1743451855902,0.58967516,607.6,606.36,0.32983706]
[1743451856107,0.30282336,607.59,606.36,0.32983706]
[1743451857510,0.3028428,607.58,606.36,0.32983706]
[1743451857710,0.3028428,607.59,606.36,0.32983706]
[1743451857910,0.3028428,607.58,606.36,0.32983706]
[1743451858108,0.3028428,607.57,606.36,0.32983706]
[1743451858307,0.3028428,607.56,606.36,0.32983706]
[1743451858506,0.3028428,607.59,606.36,0.32983706]
[1743451858710,0.3028428,607.58,606.36,0.32983706]
[1743451859010,0.3028428,607.57,606.36,0.32983706]
[1743451863917,0.3028428,607.56,606.36,0.32983706]
[1743451864113,0.3028428,607.55,606.36,0.32983706]
[1743451864319,0.3028428,607.57,606.36,0.32983706]
[1743451864520,0.3028428,607.56,606.36,0.32983706]
[1743451864716,0.3028428,607.64,606.36,0.32983706]
[1743451865021,0.28687072,607.56,606.36,0.32983706]
[1743451865223,0.3028428,607.55,606.36,0.32983706]
[1743451865519,0.3028428,607.54,606.36,0.32983706]
[1743451867715,0.3028428,607.64,606.36,0.32983706]
[1743451867918,0.3028428,607.63,606.36,0.32983706]
[1743451868119,0.28683052,607.53,606.36,0.32983706]
[1743451868316,0.3028428,607.52,606.36,0.32983706]
[1743451868517,0.3028428,607.51,606.36,0.32983706]
[1743451868719,0.28683052,607.52,606.36,0.32983706]
[1743451868919,0.3028428,607.51,606.36,0.32983706]
[1743451870723,0.3028428,607.5,606.36,0.32983706]
[1743451870922,0.3028428,607.49,606.36,0.32983706]
[1743451873825,0.58968278,607.48,606.36,0.32983706]
[1743451874125,0.3028428,607.47,606.36,0.32983706]
[1743451876927,0.58966978,607.46,606.36,0.32983706]
[1743451877134,0.3028428,607.45,606.36,0.32983706]
[1743451879537,0.3028428,607.44,606.36,0.32983706]
[1743451879736,0.3028428,607.64,606.36,0.32983706]
[1743451879933,0.28681397,607.44,606.36,0.32983706]
[1743451880138,0.3028428,607.43,606.36,0.32983706]
[1743451880335,0.3028428,607.42,606.36,0.32983706]
[1743451880535,0.3028428,607.41,606.36,0.32983706]
[1743451880733,0.3028428,607.4,606.36,0.32983706]
[1743451880931,0.3028428,607.39,606.36,0.32983706]
[1743451881135,0.3028428,607.38,606.36,0.32983706]
[1743451881335,0.3028428,607.37,606.36,0.32983706]
[1743451881638,0.3028428,607.36,606.36,0.32983706]
[1743451881837,0.3028428,607.42,606.36,0.32983706]
[1743451882037,0.3028428,607.41,606.36,0.32983706]
[1743451882237,0.3028428,607.42,606.36,0.32983706]
[1743451882438,0.3028428,607.41,606.36,0.32983706]
[1743451882639,1.036,607.65,606.36,0.32983706]
[1743451882640,0.3028428,607.4,606.36,0.32983706]
[1743451882838,0.3028428,607.64,606.36,0.32983706]
[1743451883039,0.28677261,607.39,606.36,0.32983706]
[1743451883239,0.3028428,607.38,606.36,0.32983706]
[1743451883634,0.28677261,607.38,606.36,0.32983706]
[1743451883840,0.3028428,607.37,606.36,0.32983706]
[1743451884235,0.28677261,607.38,606.36,0.32983706]
[1743451884437,0.30286178,607.37,606.36,0.32983706]
[1743451885735,0.30286346,607.36,606.36,0.32983706]
[1743451885939,0.28678797,607.36,606.36,0.32983706]
[1743451886142,0.30286346,607.35,606.36,0.32983706]
[1743451888737,0.30286346,607.65,606.36,0.32983706]
[1743451888937,0.28682461,607.34,606.36,0.32983706]
[1743451889141,0.30286346,607.33,606.36,0.32983706]
[1743451889342,0.30286346,607.65,606.36,0.32983706]
[1743451889538,0.28678797,607.33,606.36,0.32983706]
[1743451889742,0.30286346,607.32,606.36,0.32983706]
[1743451889938,0.30286346,607.31,606.36,0.32983706]
[1743451890143,0.28678443,607.32,606.36,0.32983706]
[1743451890343,0.30286346,607.31,606.36,0.32983706]
[1743451891736,0.30286346,607.63,606.36,0.32983706]
[1743451891939,0.28681161,607.3,606.36,0.32983706]
[1743451892146,0.30286346,607.29,606.36,0.32983706]
[1743451892343,0.30286346,607.28,606.36,0.32983706]
[1743451892538,0.28677261,607.29,606.36,0.32983706]
[1743451892739,0.30286346,607.28,606.36,0.32983706]
[1743451894946,0.58969516,607.27,606.36,0.32983706]
[1743451895148,0.30286346,607.26,606.36,0.32983706]
[1743451900852,0.30286346,607.25,606.36,0.32983706]
[1743451901048,0.30286346,607.24,606.36,0.32983706]
[1743451903749,0.28687308,607.23,606.36,0.32983706]
[1743451904154,0.30289248,607.22,606.36,0.32983706]
[1743451905353,0.28687308,607.23,606.36,0.32983706]
[1743451905553,0.30289205,607.22,606.36,0.32983706]
[1743451906757,0.30289205,607.63,606.36,0.32983706]
[1743451906958,0.28686008,607.21,606.36,0.32983706]
[1743451907258,0.30289025,607.2,606.36,0.32983706]
[1743451907458,0.30289025,607.19,606.36,0.32983706]
[1743451909952,0.58976925,607.18,606.36,0.32983706]
[1743451910158,0.30289025,607.17,606.36,0.32983706]
[1743451912761,0.30289025,607.16,606.36,0.32983706]
[1743451912960,0.30289025,607.15,606.36,0.32983706]
[1743451915861,0.5898201,607.14,606.36,0.32983706]
[1743451916063,0.30289025,607.13,606.36,0.32983706]
[1743451918864,0.30289025,607.63,606.36,0.32983706]
[1743451919165,0.28690856,607.12,606.36,0.32983706]
[1743451919360,0.30289025,607.11,606.36,0.32983706]
[1743451919557,0.28690856,607.11,606.36,0.32983706]
[1743451919757,0.30289025,607.1,606.36,0.32983706]
[1743451921864,0.28695706,607.09,606.36,0.32983706]
[1743451922266,0.30289025,607.08,606.36,0.32983706]
[1743451922863,0.30293001,607.07,606.36,0.32983706]
[1743451923064,0.30293001,607.08,606.36,0.32983706]
[1743451923261,0.28695706,607.09,606.36,0.32983706]
[1743451924566,0.32915308,607.62,606.36,0.32983706]
[1743451924763,0.30291634,607.61,606.36,0.32983706]
[1743451925068,0.30291634,607.6,606.36,0.32983706]
[1743451925264,0.30291634,607.59,606.36,0.32983706]
[1743451925465,0.30291634,607.58,606.36,0.32983706]
[1743451925768,0.30291634,607.57,606.36,0.32983706]
[1743451925963,0.30291634,607.56,606.36,0.32983706]
[1743451926161,0.30291634,607.55,606.36,0.32983706]
[1743451926365,0.30291634,607.54,606.36,0.32983706]
[1743451926567,0.30291634,607.53,606.36,0.32983706]
[1743451926762,0.30291634,607.52,606.36,0.32983706]
[1743451926967,0.30291634,607.51,606.36,0.32983706]
[1743451927171,0.30291634,607.5,606.36,0.32983706]
[1743451927364,0.30291634,607.49,606.36,0.32983706]
[1743451927564,0.30291634,607.48,606.36,0.32983706]
[1743451927869,0.30291634,607.47,606.36,0.32983706]
[1743451928069,0.30291634,607.46,606.36,0.32983706]
[1743451928271,0.30291634,607.45,606.36,0.32983706]
[1743451928471,0.30291634,607.6,606.36,0.32983706]
[1743451928668,0.30291634,607.59,606.36,0.32983706]
[1743451928865,0.30291634,607.58,606.36,0.32983706]
[1743451929066,0.30291634,607.57,606.36,0.32983706]
[1743451929272,0.30291634,607.56,606.36,0.32983706]
[1743451929571,0.30291634,607.55,606.36,0.32983706]
[1743451929772,0.30291634,607.54,606.36,0.32983706]
[1743451929969,0.28686599,607.61,606.36,0.32983706]
[1743451929970,0.30291634,607.53,606.36,0.32983706]
[1743451930171,0.30291634,607.52,606.36,0.32983706]
[1743451930371,0.30291634,607.51,606.36,0.32983706]
[1743451930567,0.30291634,607.5,606.36,0.32983706]
[1743451930873,0.30291634,607.49,606.36,0.32983706]
[1743451931171,0.30291634,607.48,606.36,0.32983706]
[1743451931372,0.30291634,607.47,606.36,0.32983706]
[1743451931565,0.30291634,607.46,606.36,0.32983706]
[1743451931765,0.30291634,607.45,606.36,0.32983706]
[1743451931969,0.30291634,607.44,606.36,0.32983706]
[1743451932171,0.28688491,607.5,606.36,0.32983706]
[1743451932172,0.30291634,607.43,606.36,0.32983706]
[1743451932371,0.30291634,607.42,606.36,0.32983706]
[1743451932568,0.30291634,607.41,606.36,0.32983706]
[1743451932774,0.30291634,607.4,606.36,0.32983706]
[1743451932974,0.30291634,607.39,606.36,0.32983706]
[1743451933170,0.30291634,607.38,606.36,0.32983706]
[1743451933368,0.30291634,607.37,606.36,0.32983706]
[1743451933569,0.30291634,607.36,606.36,0.32983706]
[1743451933772,0.30291634,607.35,606.36,0.32983706]
[1743451933973,0.30291634,607.34,606.36,0.32983706]
[1743451934275,0.30291634,607.33,606.36,0.32983706]
[1743451934471,0.28686717,607.35,606.36,0.32983706]
[1743451934472,0.30291634,607.34,606.36,0.32983706]
[1743451934678,0.30291634,607.33,606.36,0.32983706]
[1743451934876,0.30291634,607.34,606.36,0.32983706]
[1743451935071,0.30291634,607.33,606.36,0.32983706]
[1743451935273,0.30291634,607.32,606.36,0.32983706]
[1743451935473,0.30291634,607.31,606.36,0.32983706]
[1743451935671,0.30291634,607.34,606.36,0.32983706]
[1743451935875,0.30291634,607.33,606.36,0.32983706]
[1743451936170,0.28686717,607.35,606.36,0.32983706]
[1743451936171,0.30291634,607.32,606.36,0.32983706]
[1743451936371,0.30291634,607.31,606.36,0.32983706]
[1743451936677,0.30291634,607.3,606.36,0.32983706]
[1743451936872,0.30291634,607.29,606.36,0.32983706]
[1743451937278,0.28688373,607.3,606.36,0.32983706]
[1743451937477,0.30292928,607.29,606.36,0.32983706]
[1743451938877,0.30292928,607.28,606.36,0.32983706]
[1743451939077,0.30292928,607.29,606.36,0.32983706]
[1743451939671,0.30292928,607.28,606.36,0.32983706]
[1743451939876,0.30292928,607.27,606.36,0.32983706]
[1743451941478,0.972,607.26,606.36,0.32983706]
[1743451941673,0.30292928,607.25,606.36,0.32983706]
[1743451942878,0.972,607.26,606.36,0.32983706]
[1743451943078,0.28686126,607.24,606.36,0.32983706]
[1743451943275,0.30294068,607.23,606.36,0.32983706]
[1743451943675,0.28686126,607.24,606.36,0.32983706]
[1743451943978,0.30293676,607.23,606.36,0.32983706]
[1743451945376,0.28686126,607.24,606.36,0.32983706]
[1743451945583,0.30293648,607.23,606.36,0.32983706]
[1743451945887,0.58982967,607.23,606.36,0.32983706]
[1743451946082,0.28689319,607.23,606.36,0.32983706]
[1743451948582,0.30293648,607.22,606.36,0.32983706]
[1743451948783,0.30293648,607.21,606.36,0.32983706]
[1743451948983,0.28688254,607.22,606.36,0.32983706]
[1743451949183,0.30293648,607.21,606.36,0.32983706]
[1743451949783,0.30293686,607.2,606.36,0.32983706]
[1743451949983,0.30293686,607.21,606.36,0.32983706]
[1743451951787,0.30293686,607.25,606.36,0.32983706]
[1743451951989,0.28691329,607.2,606.36,0.32983706]
[1743451952186,0.30293686,607.19,606.36,0.32983706]
[1743451954488,0.30295615,607.18,606.36,0.32983706]
[1743451954688,0.30295615,607.17,606.36,0.32983706]
[1743451954885,0.2868991,607.18,606.36,0.32983706]
[1743451955089,0.30295615,607.17,606.36,0.32983706]
[1743451959497,0.30302557,607.16,606.36,0.32983706]
[1743451959896,0.30302557,607.17,605.14,2.51461352]
[1743451960097,0.30302557,607.16,605.24,0.33044742]
[1743451960398,0.30302557,607.15,605.24,0.33044742]
[1743451960600,0.30302557,607.17,605.24,0.33044742]
[1743451960800,0.28705411,607.14,605.24,0.33044742]
[1743451960997,0.30306569,607.13,605.24,0.33044742]
[1743451963698,0.30306569,607.59,605.24,0.33044742]
[1743451963898,0.28712753,607.12,605.24,0.33044742]
[1743451964099,0.30306569,607.11,605.24,0.33044742]
[1743451964501,0.30306569,607.56,605.24,0.33044742]
[1743451964700,0.32919643,607.54,605.24,0.33044742]
[1743451964897,0.30306569,607.53,605.24,0.33044742]
[1743451965204,1.29606569,607.53,605.24,0.33044742]
[1743451965395,0.30306569,607.52,605.24,0.33044742]
[1743451965596,0.63227837,607.51,605.24,0.33044742]
[1743451965799,0.32922352,607.49,605.24,0.33044742]
[1743451966005,0.30306569,607.48,605.24,0.33044742]
[1743451966196,0.32923978,607.46,605.24,0.33044742]
[1743451966397,0.30306569,607.45,605.24,0.33044742]
[1743451966597,0.63231631,607.44,605.24,0.33044742]
[1743451966801,0.63232173,607.43,605.24,0.33044742]
[1743451967097,0.30306569,607.42,605.24,0.33044742]
[1743451967303,0.32926146,607.42,605.24,0.33044742]
[1743451967504,0.3031011,607.41,605.24,0.33044742]
[1743451967698,0.6323734,607.4,605.24,0.33044742]
[1743451967902,0.63237882,607.39,605.24,0.33044742]
[1743451968095,0.63238425,607.38,605.24,0.33044742]
[1743451968297,0.63238967,607.37,605.24,0.33044742]
[1743451968498,0.63239509,607.36,605.24,0.33044742]
[1743451968697,0.63240051,607.35,605.24,0.33044742]
[1743451968904,0.32930483,607.34,605.24,0.33044742]
[1743451969106,0.30310417,607.33,605.24,0.33044742]
[1743451969298,0.63241985,607.32,605.24,0.33044742]
[1743451969505,0.63242527,607.31,605.24,0.33044742]
[1743451969704,0.63243069,607.3,605.24,0.33044742]
[1743451969900,0.63243612,607.29,605.24,0.33044742]
[1743451970105,0.993,607.53,605.24,0.33044742]
[1743451970106,0.63244154,607.28,605.24,0.33044742]
[1743451970310,0.63244696,607.27,605.24,0.33044742]
[1743451970501,0.63245238,607.26,605.24,0.33044742]
[1743451970704,0.63245781,607.25,605.24,0.33044742]
[1743451970904,0.63246323,607.24,605.24,0.33044742]
[1743451971206,0.30310417,607.23,605.24,0.33044742]
[1743451971406,0.30310417,607.22,605.24,0.33044742]
[1743451972005,0.30310417,607.21,605.24,0.33044742]
[1743451972307,0.30310417,607.2,605.24,0.33044742]
[1743451972506,0.30310417,607.19,605.24,0.33044742]
[1743451972707,0.30310417,607.18,605.24,0.33044742]
[1743451972901,0.30310417,607.17,605.24,0.33044742]
[1743451973103,0.28708489,607.18,605.24,0.33044742]
[1743451973305,0.30310417,607.17,605.24,0.33044742]
[1743451973505,0.30310417,607.16,605.24,0.33044742]
[1743451973804,0.30310417,607.15,605.24,0.33044742]
[1743451974008,0.30310417,607.17,605.24,0.33044742]
[1743451974210,0.30310417,607.16,605.24,0.33044742]
[1743451974407,0.30310417,607.17,605.24,0.33044742]
[1743451974607,0.30310417,607.16,605.24,0.33044742]
[1743451974809,0.30310417,607.15,605.24,0.33044742]
[1743451975111,0.30310417,607.14,605.24,0.33044742]
[1743451975506,0.30314913,607.13,605.24,0.33044742]
[1743451975709,0.30314913,607.12,605.24,0.33044742]
[1743451975910,0.30314913,607.11,605.24,0.33044742]
[1743451976111,0.30314913,607.1,605.24,0.33044742]
[1743451976311,0.30314913,607.09,605.24,0.33044742]
[1743451976515,0.30314913,607.08,605.24,0.33044742]
[1743451976710,0.30314913,607.07,605.24,0.33044742]
[1743451976913,0.30314913,607.06,605.24,0.33044742]
[1743451977115,0.30314913,607.05,605.24,0.33044742]
[1743451977310,0.30314913,607.04,605.24,0.33044742]
[1743451977514,0.30314913,607.03,605.24,0.33044742]
[1743451977810,0.30314913,607.02,605.24,0.33044742]
[1743451978015,0.30314913,607.01,605.24,0.33044742]
[1743451978415,0.30314913,607.0,605.24,0.33044742]
[1743451978609,0.32935906,607.24,605.24,0.33044742]
[1743451978610,0.30314913,606.99,605.24,0.33044742]
[1743451978812,0.28713937,607.0,605.24,0.33044742]
[1743451979012,0.30316069,606.99,605.24,0.33044742]
[1743451979409,0.30316069,606.98,605.24,0.33044742]
[1743451979710,0.30316069,606.97,605.24,0.33044742]
[1743451979916,0.30316069,606.99,605.24,0.33044742]
[1743451980215,0.30316069,606.98,605.24,0.33044742]
[1743451980514,0.30316069,606.97,605.24,0.33044742]
[1743451980709,0.30316069,606.99,605.24,0.33044742]
[1743451980908,0.30316069,606.98,605.24,0.33044742]
[1743451981210,0.30316069,606.97,605.24,0.33044742]
[1743451981414,0.30316069,606.99,605.24,0.33044742]
[1743451981614,0.30316069,606.98,605.24,0.33044742]
[1743451981817,0.30316069,607.23,605.24,0.33044742]
[1743451982017,0.287137,606.98,605.24,0.33044742]
[1743451982218,0.30316069,606.97,605.24,0.33044742]
[1743451982419,0.30316069,607.21,605.24,0.33044742]
[1743451982718,0.30316069,607.2,605.24,0.33044742]
[1743451982912,0.30316069,607.19,605.24,0.33044742]
[1743451983109,1.171,607.22,605.24,0.33044742]
[1743451983316,0.30314485,607.21,605.24,0.33044742]
[1743451983617,0.30314485,607.2,605.24,0.33044742]
[1743451983817,0.30314485,607.19,605.24,0.33044742]
[1743451984113,0.30314485,607.18,605.24,0.33044742]
[1743451984316,0.30314485,607.17,605.24,0.33044742]
[1743451984518,0.30314485,607.16,605.24,0.33044742]
[1743451984813,0.30314485,607.15,605.24,0.33044742]
[1743451985013,0.30314485,607.14,605.24,0.33044742]
[1743451985217,0.30314485,607.13,605.24,0.33044742]
[1743451985412,0.30314485,607.12,605.24,0.33044742]
[1743451985611,0.2870695,607.16,605.24,0.33044742]
[1743451985612,0.30314485,607.15,605.24,0.33044742]
[1743451985814,0.30314485,607.11,605.24,0.33044742]
[1743451986010,0.30314485,607.1,605.24,0.33044742]
[1743451986312,0.2870695,607.16,605.24,0.33044742]
[1743451986511,0.30314461,607.15,605.24,0.33044742]
[1743451988014,0.59018806,607.14,605.24,0.33044742]
[1743451988214,0.30314461,607.13,605.24,0.33044742]
[1743451990814,0.28703872,607.12,605.24,0.33044742]
[1743451991222,0.30309261,607.11,605.24,0.33044742]
[1743451992519,0.28703872,607.12,605.24,0.33044742]
[1743451992720,0.30309728,607.11,605.24,0.33044742]
[1743451993724,0.30309285,607.1,605.24,0.33044742]
[1743451993921,0.30309285,607.09,605.24,0.33044742]
[1743451994421,0.30309285,607.09,605.25,1.92704585]
[1743451994619,0.30309285,607.08,605.26,1.92704585]
[1743451994822,0.30309285,607.07,605.28,0.33042558]
[1743451995018,0.30309285,607.06,605.29,1.92704585]
[1743451995221,0.30309285,607.05,605.31,0.33040921]
[1743451995422,0.30309285,607.04,605.32,1.92704585]
[1743451995723,0.28703517,607.1,605.34,0.33039283]
[1743451995923,0.30309264,607.09,605.35,1.92704585]
[1743451996125,0.30309264,607.08,605.37,0.33037646]
[1743451996320,0.30309264,607.07,605.38,1.92704585]
[1743451996521,0.30309264,607.06,605.4,0.33036009]
[1743451996721,0.30309264,607.05,605.41,1.92704585]
[1743451996924,0.30309264,607.05,605.4,0.33036009]
[1743451996925,0.30309264,607.04,605.43,0.33034372]
[1743451997125,0.30309264,607.03,605.44,1.92704585]
[1743451997318,0.30309264,607.02,605.46,0.33032735]
[1743451997518,0.30309264,607.01,605.47,1.92704585]
[1743451997719,0.28700676,607.06,605.49,0.33031098]
[1743451997720,0.30309264,607.0,605.49,0.33031098]
[1743451997921,0.30309264,606.99,605.5,1.92704585]
[1743451998124,0.30309264,606.98,605.52,0.33029462]
[1743451998325,0.30309264,606.97,605.53,1.92704585]
[1743451998521,0.30309264,606.96,605.55,0.33027825]
[1743451998727,0.30309264,607.05,605.55,0.33027825]
[1743451999026,0.28700676,607.06,605.55,0.33027825]
[1743451999027,0.30309773,607.04,605.55,0.33027825]
[1743451999219,0.28700676,607.06,605.55,0.33027825]
[1743451999220,0.30309773,607.03,605.55,0.33027825]
[1743451999419,0.30309773,607.02,605.55,0.33027825]
[1743451999619,0.30309773,607.01,605.55,0.33027825]
[1743451999817,0.30309773,607.0,605.55,0.33027825]
[1743452000024,0.30309773,606.99,605.55,0.33027825]
[1743452000319,0.30309773,606.98,605.55,0.33027825]
[1743452000520,0.30309773,607.05,605.55,0.33027825]
[1743452000724,0.30309773,607.04,605.55,0.33027825]
[1743452000920,0.30309773,607.03,605.56,1.92704585]
[1743452001125,0.30309773,607.02,605.58,0.33026189]
[1743452001420,0.30309773,607.01,605.59,1.92704585]
[1743452001622,0.30309773,607.0,605.61,0.33024553]
[1743452001821,0.30309773,607.05,605.61,0.33024553]
[1743452002020,0.28700676,607.06,605.61,0.33024553]
[1743452002219,0.30308425,607.05,605.61,0.33024553]
[1743452002424,0.30308425,607.04,605.61,0.33024553]
[1743452002726,0.30308425,607.03,605.61,0.33024553]
[1743452002927,0.30308425,607.02,605.61,0.33024553]
[1743452003124,0.30308425,607.01,605.61,0.33024553]
[1743452003324,0.30308425,607.0,605.61,0.33024553]
[1743452003627,0.30308425,606.99,605.61,0.33024553]
[1743452003821,0.30308425,606.98,605.61,0.33024553]
[1743452004127,0.30308425,606.97,605.61,0.33024553]
[1743452004321,0.30308425,607.03,605.62,1.92704585]
[1743452004527,0.30308425,607.02,605.64,0.33022917]
[1743452004723,0.30308425,607.01,605.64,0.33022917]
[1743452004921,0.30308425,607.0,605.64,0.33022917]
[1743452005224,0.30308425,606.99,605.64,0.33022917]
[1743452005424,0.30308425,607.03,605.64,0.33022917]
[1743452005625,0.30308425,607.02,605.64,0.33022917]
[1743452005826,0.28701741,607.02,605.64,0.33022917]
[1743452006023,0.30308425,607.01,605.64,0.33022917]
[1743452007230,0.786,607.0,605.64,0.33022917]
[1743452007528,0.30308425,606.99,605.64,0.33022917]
[1743452008524,0.30308425,606.99,605.65,1.92704585]
[1743452009029,0.30308425,606.99,605.67,0.33021282]
[1743452009229,0.28699847,606.98,605.67,0.33021282]
[1743452009429,0.30308425,606.97,605.67,0.33021282]
[1743452010131,0.30307765,606.96,605.67,0.33021282]
[1743452010330,0.30307765,606.95,605.67,0.33021282]
[1743452010630,0.30307765,606.94,605.67,0.33021282]
[1743452010823,0.30307765,606.93,605.67,0.33021282]
[1743452011022,0.30307765,606.97,605.67,0.33021282]
[1743452011225,0.30307765,606.96,605.67,0.33021282]
[1743452011425,0.30307765,606.97,605.67,0.33021282]
[1743452011624,0.786,607.0,605.67,0.33021282]
[1743452011831,0.30307209,606.99,605.67,0.33021282]
[1743452012229,0.59010015,606.99,605.67,0.33021282]
[1743452012427,0.30307209,606.98,605.67,0.33021282]
[1743452013435,0.30307209,606.98,605.68,1.92704585]
[1743452013636,0.30307209,606.98,605.7,0.33019646]
[1743452014728,0.30307209,606.99,605.7,0.33019646]
[1743452014930,0.59011081,606.97,605.7,0.33019646]
[1743452015137,0.30307209,606.96,605.7,0.33019646]
[1743452017731,0.30307209,606.95,605.7,0.33019646]
[1743452017931,0.28702451,606.95,605.7,0.33019646]
[1743452018133,0.30307209,606.94,605.7,0.33019646]
[1743452020133,0.30307209,606.94,605.71,1.92704585]
[1743452020332,0.30307209,606.94,605.73,0.33018011]
[1743452020537,0.30307209,606.94,605.73,2.25722596]
[1743452020737,0.30307209,606.94,605.74,1.92704585]
[1743452020933,0.30307209,606.94,605.76,0.33016376]
[1743452021338,0.30308348,606.93,605.76,0.33016376]
[1743452021638,0.30308348,606.92,605.76,0.33016376]
[1743452021839,0.30308348,606.91,605.76,0.33016376]
[1743452022032,0.30308348,606.9,605.76,0.33016376]
[1743452022237,0.30308348,606.89,605.76,0.33016376]
[1743452022432,0.30308348,606.94,605.76,0.33016376]
[1743452022635,0.30308348,606.93,605.76,0.33016376]